bitfinex/quotes_BTCUSD_20250803
["timestamp","ask_amount","ask_price","bid_price","bid_amount"]
[1754222838916,0.4932222,114070.0,114060.0,1.10873329]
[1754222839420,0.50694852,114070.0,114060.0,1.10973329]
[1754222839636,0.50694852,114070.0,114060.0,1.11073329]
[1754222842240,0.50694852,114070.0,114060.0,1.10873329]
[1754222842470,0.50694852,114070.0,114060.0,1.10973329]
[1754222842690,0.50694852,114070.0,114060.0,1.11073329]
[1754222843590,0.37258852,114070.0,114060.0,1.11073329]
[1754222843805,0.50694852,114070.0,114060.0,1.11073329]
[1754222845641,0.4932222,114070.0,114060.0,1.11073329]
[1754222847315,0.4931696,114070.0,114060.0,1.11073329]
[1754222848352,0.4931696,114070.0,114060.0,1.10973329]
[1754222848581,0.4931696,114070.0,114060.0,1.10873329]
[1754222848961,0.4931696,114070.0,114060.0,1.11073329]
[1754222849120,0.4931696,114070.0,114060.0,1.10973329]
[1754222849355,0.4931696,114070.0,114060.0,1.10873329]
[1754222849568,0.3588096,114070.0,114060.0,1.10973329]
[1754222849821,0.37253592,114070.0,114060.0,1.11073329]
[1754222850023,0.35372632,114070.0,114060.0,1.11073329]
[1754222855193,0.34,114070.0,114060.0,1.11073329]
[1754222858328,0.35372637,114070.0,114060.0,1.10973329]
[1754222858535,0.35372637,114070.0,114060.0,1.10873329]
[1754222858737,0.35372637,114070.0,114060.0,1.10973329]
[1754222859358,0.37259299,114070.0,114060.0,1.10973329]
[1754222860445,0.01372637,114070.0,114060.0,1.10973329]
[1754222862884,0.01372637,114070.0,114060.0,1.10873329]
[1754222863399,0.01372637,114070.0,114060.0,1.10973329]
[1754222865252,0.13647245,114090.0,114060.0,1.10973329]
[1754222865476,0.34,114080.0,114070.0,0.13428]
[1754222865718,0.38342854,114080.0,114070.0,0.13428]
[1754222865938,0.38342856,114080.0,114070.0,0.13428]
[1754222866810,0.38442856,114080.0,114070.0,0.13428]
[1754222867040,5.23701456,114080.0,114070.0,0.13428]
[1754222867722,5.23701456,114080.0,114060.0,1.10865329]
[1754222867944,0.34219245,114070.0,114060.0,1.10865329]
[1754222868202,0.34,114070.0,114060.0,1.10865329]
[1754222869515,0.3537265,114070.0,114060.0,1.10865329]
[1754222870443,0.37258241,114070.0,114060.0,1.10865329]
[1754222871147,0.37358241,114070.0,114060.0,1.10865329]
[1754222871831,0.37458241,114070.0,114060.0,1.10865329]
[1754222872283,0.37358241,114070.0,114060.0,1.10865329]
[1754222872497,0.37458241,114070.0,114060.0,1.10865329]
[1754222872955,0.37358241,114070.0,114060.0,1.10865329]
[1754222873385,0.37458241,114070.0,114060.0,1.10865329]
[1754222873640,0.37258241,114070.0,114060.0,1.10865329]
[1754222873875,0.3547265,114070.0,114060.0,1.10865329]
[1754222874320,0.3537265,114070.0,114060.0,1.10865329]
[1754222874530,0.34,114070.0,114060.0,1.10865329]
[1754222877859,0.35372656,114070.0,114060.0,1.10865329]
[1754222878080,0.35472656,114070.0,114060.0,1.10865329]
[1754222882843,0.37357546,114070.0,114060.0,1.10865329]
[1754222883751,0.37357546,114070.0,114060.0,1.11065329]
[1754222884446,0.37257546,114070.0,114060.0,1.11065329]
[1754222887993,0.37257546,114070.0,114060.0,1.11061329]
[1754222888209,0.37257546,114070.0,114060.0,1.10861329]
[1754222888636,0.37257546,114070.0,114060.0,1.10961329]
[1754222889055,0.37257546,114070.0,114060.0,1.10861329]
[1754222889900,0.17707792,114070.0,114060.0,1.10861329]
[1754222890108,0.01372656,114070.0,114060.0,1.10861329]
[1754222890327,0.01591901,114070.0,114060.0,1.10857329]
[1754222890545,0.01591901,114070.0,114060.0,0.97437329]
[1754222891043,0.01591901,114070.0,114060.0,1.10857329]
[1754222891677,0.01691901,114070.0,114060.0,1.10857329]
[1754222891888,0.01591901,114070.0,114060.0,1.10957329]
[1754222892743,0.00219245,114070.0,114060.0,1.10957329]
[1754222893162,0.34219245,114070.0,114060.0,1.10957329]
[1754222893385,0.34,114070.0,114060.0,1.10957329]
[1754222895603,0.35372635,114070.0,114060.0,1.10957329]
[1754222896874,0.34,114070.0,114060.0,1.10957329]
[1754222897732,0.1342,114080.0,114060.0,1.10957329]
[1754222897952,5.192586,114070.0,114060.0,0.97537329]
[1754222898173,0.34,114070.0,114060.0,1.10957329]
[1754222898598,0.34,114070.0,114060.0,1.10857329]
[1754222900103,0.35472642,114070.0,114060.0,1.10857329]
[1754222902477,0.35372642,114070.0,114060.0,1.10857329]
[1754222902702,0.35472642,114070.0,114060.0,1.10857329]
[1754222903585,0.35472642,114070.0,114060.0,0.97437329]
[1754222903809,0.35472642,114070.0,114060.0,1.10853329]
[1754222910512,0.341,114070.0,114060.0,1.10853329]
[1754222910730,0.34,114070.0,114060.0,1.11053329]
[1754222910930,0.34,114070.0,114060.0,1.11253329]
[1754222911357,0.34,114070.0,114060.0,0.97837329]
[1754222911589,0.34,114070.0,114060.0,1.11253329]
[1754222913083,0.34,114070.0,114060.0,1.11053329]
[1754222913302,0.34,114070.0,114060.0,1.11153329]
[1754222913550,0.35372636,114070.0,114060.0,1.11153329]
[1754222913813,0.35372636,114070.0,114060.0,1.11053329]
[1754222914221,0.35372636,114070.0,114060.0,1.10953329]
[1754222920707,0.01372636,114070.0,114060.0,1.10953329]
[1754222922319,0.01472636,114070.0,114060.0,1.10853329]
[1754222926051,0.01472636,114070.0,114060.0,0.97437329]
[1754222926265,0.01472636,114070.0,114060.0,1.10849329]
[1754222926463,0.001,114070.0,114060.0,0.97437329]
[1754222926822,0.001,114070.0,114060.0,1.10849329]
[1754222927244,0.001,114070.0,114060.0,0.97437329]
[1754222927460,0.001,114070.0,114060.0,1.10849329]
[1754222930276,0.003,114070.0,114060.0,1.10849329]
[1754222930688,0.00219245,114080.0,114060.0,1.10849329]
[1754222930900,0.35372682,114070.0,114060.0,0.97437329]
[1754222931106,0.35872682,114070.0,114060.0,1.10845329]
[1754222931399,0.35572682,114070.0,114060.0,1.10845329]
[1754222931587,0.35372682,114070.0,114060.0,1.10845329]
[1754222933764,0.35572682,114070.0,114060.0,1.10845329]
[1754222933980,0.35872682,114070.0,114060.0,1.10845329]
[1754222940597,0.35872682,114070.0,114060.0,0.97437329]
[1754222940801,0.35872682,114070.0,114060.0,1.10845329]
[1754222943999,0.35872682,114070.0,114060.0,0.97437329]
[1754222944216,0.01872682,114070.0,114060.0,1.10841329]
[1754222950060,0.13404,114090.0,114060.0,1.10841329]
[1754222950263,4.89603552,114090.0,114070.0,0.13404]
[1754222950577,4.852586,114080.0,114070.0,0.13404]
[1754222950767,4.87716149,114080.0,114070.0,0.13404]
[1754222952535,4.88016149,114080.0,114070.0,0.13404]
[1754222953397,4.8938881,114080.0,114070.0,0.13404]
[1754222954056,4.8948881,114080.0,114070.0,0.13404]
[1754222954721,4.88116149,114080.0,114070.0,0.13404]
[1754222960220,4.90003856,114080.0,114070.0,0.13404]
[1754222961261,4.9000411,114080.0,114070.0,0.13404]
[1754222963838,4.90004196,114080.0,114070.0,0.13404]
[1754222964716,4.90004063,114080.0,114070.0,0.13404]
[1754222969067,4.91376746,114080.0,114070.0,0.13404]
[1754222969534,4.91376656,114080.0,114070.0,0.13404]
[1754222969764,4.91376476,114080.0,114070.0,0.13404]
[1754222970442,4.71457502,114080.0,114070.0,0.13404]
[1754222972407,4.70638296,114080.0,114070.0,0.13404]
[1754222972625,4.71457493,114080.0,114070.0,0.13404]
[1754222973555,4.84853493,114080.0,114070.0,0.13404]
[1754222975667,4.8348081,114080.0,114070.0,0.13404]
[1754222980317,4.85368339,114080.0,114070.0,0.13404]
[1754222982681,4.672272,114070.0,114060.0,0.97437329]
[1754222982882,4.69684879,114070.0,114060.0,0.97437329]
[1754222983102,4.71572372,114070.0,114060.0,1.10829329]
[1754222983326,4.72945094,114070.0,114060.0,1.10829329]
[1754222983793,4.73045094,114070.0,114060.0,1.10829329]
[1754222983993,4.75682194,114070.0,114060.0,1.10829329]
[1754222984409,4.75882194,114070.0,114060.0,1.10829329]
[1754222985026,4.89274194,114070.0,114060.0,1.10829329]
[1754222985227,4.87901472,114070.0,114060.0,1.10829329]
[1754222986134,4.87901472,114070.0,114060.0,0.97437329]
[1754222986361,4.87901472,114070.0,114060.0,1.10829329]
[1754222986779,4.8790087,114070.0,114060.0,1.10829329]
[1754222987201,4.8790087,114070.0,114060.0,0.97437329]
[1754222987632,4.9072013,114070.0,114060.0,0.97437329]
[1754222988252,4.92092996,114070.0,114060.0,0.97437329]
[1754222992088,4.89173736,114070.0,114060.0,0.97437329]
[1754222992309,4.89373736,114070.0,114060.0,0.97437329]
[1754222992550,4.89973736,114070.0,114060.0,0.97437329]
[1754222992757,5.01276752,114070.0,114060.0,0.97437329]
[1754222993181,4.76481736,114070.0,114060.0,0.97437329]
[1754222993429,4.89873736,114070.0,114060.0,0.97437329]
[1754222993652,4.89573736,114070.0,114060.0,0.97437329]
[1754222993905,4.88973736,114070.0,114060.0,0.97437329]
[1754222994159,4.76381736,114070.0,114060.0,0.97437329]
[1754222994405,4.89773736,114070.0,114060.0,0.97437329]
[1754222994851,4.98657492,114070.0,114060.0,0.97437329]
[1754222995306,4.98253632,114070.0,114060.0,0.97437329]
[1754222995740,4.98553632,114070.0,114060.0,0.97437329]
[1754222998033,4.98551785,114070.0,114060.0,0.97437329]
[1754222999332,4.89668029,114070.0,114060.0,0.97437329]
[1754222999764,4.92487289,114070.0,114060.0,0.97437329]
[1754223005692,4.92486111,114070.0,114060.0,0.97437329]
[1754223007030,4.91113245,114070.0,114060.0,0.97437329]
[1754223009347,4.91109245,114070.0,114060.0,0.97437329]
[1754223009674,4.8022391,114070.0,114060.0,0.97437329]
[1754223009884,4.9361191,114070.0,114060.0,0.97437329]
[1754223010764,4.91109245,114070.0,114060.0,0.97437329]
[1754223011438,4.92482141,114070.0,114060.0,0.97437329]
[1754223012107,4.94841609,114070.0,114060.0,0.97437329]
[1754223013953,5.28844235,114070.0,114060.0,0.97437329]
[1754223015353,5.27471339,114070.0,114060.0,0.97437329]
[1754223015846,5.29088219,114070.0,114060.0,0.97437329]
[1754223016081,5.27471339,114070.0,114060.0,0.97437329]
[1754223016762,5.26654591,114070.0,114060.0,0.97437329]
[1754223017019,5.2747314,114070.0,114060.0,0.97437329]
[1754223017239,5.0701354,114070.0,114060.0,0.97437329]
[1754223017474,5.08758442,114070.0,114060.0,0.97437329]
[1754223017921,5.53628442,114070.0,114060.0,0.97437329]
[1754223018167,5.55001396,114070.0,114060.0,0.97437329]
[1754223018394,5.63585152,114070.0,114060.0,0.97437329]
[1754223018858,5.63485152,114070.0,114060.0,0.97437329]
[1754223019089,5.63885152,114070.0,114060.0,0.97437329]
[1754223019329,5.63585152,114070.0,114060.0,0.97437329]
[1754223019551,5.63185152,114070.0,114060.0,0.97437329]
[1754223019775,5.6368555,114070.0,114060.0,0.97437329]
[1754223019999,5.6438555,114070.0,114060.0,0.97437329]
[1754223020224,5.6368555,114070.0,114060.0,0.97437329]
[1754223020441,5.44512634,114070.0,114060.0,0.97437329]
[1754223020929,5.47496955,114070.0,114060.0,0.97437329]
[1754223021155,5.38113199,114070.0,114060.0,0.97437329]
[1754223021388,5.38313199,114070.0,114060.0,0.97437329]
[1754223021866,5.38113199,114070.0,114060.0,0.97437329]
[1754223022369,5.38413199,114070.0,114060.0,0.97437329]
[1754223024254,5.46896955,114070.0,114060.0,0.97437329]
[1754223024723,5.46796955,114070.0,114060.0,0.97437329]
[1754223026321,5.37913199,114070.0,114060.0,0.97437329]
[1754223027318,5.43101571,114070.0,114060.0,0.97437329]
[1754223027527,5.45461039,114070.0,114060.0,0.97437329]
[1754223031058,5.45461439,114070.0,114060.0,0.97437329]
[1754223031948,5.4804576,114070.0,114060.0,0.97437329]
[1754223032608,5.56929516,114070.0,114060.0,0.97437329]
[1754223032824,5.4804576,114070.0,114060.0,0.97437329]
[1754223033040,5.3460976,114070.0,114060.0,0.97437329]
[1754223033259,5.4807776,114070.0,114060.0,0.97437329]
[1754223033926,5.48080658,114070.0,114060.0,0.97437329]
[1754223035558,5.14080658,114070.0,114060.0,0.97437329]
[1754223036780,5.14080723,114070.0,114060.0,0.97437329]
[1754223040780,5.22964479,114070.0,114060.0,0.97437329]
[1754223043587,5.14080723,114070.0,114060.0,0.97437329]
[1754223045422,5.14080905,114070.0,114060.0,0.97437329]
[1754223045639,5.11721437,114070.0,114060.0,0.97437329]
[1754223046308,5.11721946,114070.0,114060.0,0.97437329]
[1754223046768,5.21819379,114070.0,114060.0,0.97437329]
[1754223046989,5.265903,114070.0,114060.0,0.97437329]
[1754223047904,5.265703,114070.0,114060.0,0.97437329]
[1754223050338,4.817003,114070.0,114060.0,0.97437329]
[1754223050826,4.52192934,114070.0,114060.0,0.97437329]
[1754223052415,4.49608613,114070.0,114060.0,0.97437329]
[1754223054498,4.49608613,114070.0,114060.0,0.97010625]
[1754223056789,4.52322422,114070.0,114060.0,0.97010625]
[1754223057215,4.49963636,114070.0,114060.0,0.97010625]
[1754223057446,4.61205971,114070.0,114060.0,0.97010625]
[1754223057674,4.58847392,114070.0,114060.0,0.97010625]
[1754223057895,4.57474438,114070.0,114060.0,0.97010625]
[1754223059410,4.56654753,114070.0,114060.0,0.97010625]
[1754223059643,4.57473622,114070.0,114060.0,0.97010625]
[1754223060677,4.58846636,114070.0,114060.0,0.97010625]
[1754223060891,4.61985358,114070.0,114060.0,0.97010625]
[1754223061883,4.53101602,114070.0,114060.0,0.97010625]
[1754223063107,4.54987921,114070.0,114060.0,0.97010625]
[1754223064005,4.57372084,114070.0,114060.0,0.97010625]
[1754223064227,4.57772084,114070.0,114060.0,0.97010625]
[1754223064668,4.90019084,114070.0,114060.0,0.96131633]
[1754223064896,5.38615851,114070.0,114060.0,0.93055159]
[1754223065123,5.34104115,114070.0,114060.0,0.92176167]
[1754223065574,5.37246831,114070.0,114060.0,0.88220701]
[1754223065810,5.36846831,114070.0,114060.0,0.88220701]
[1754223066027,5.36846831,114070.0,114060.0,0.84265235]
[1754223066244,5.36846831,114070.0,114060.0,0.83386271]
[1754223066891,5.36846831,114070.0,114060.0,0.79430932]
[1754223067386,5.36846831,114070.0,114060.0,0.78551968]
[1754223067611,5.37446831,114070.0,114060.0,0.74696629]
[1754223068065,5.36846831,114070.0,114060.0,0.73717665]
[1754223068327,5.36846831,114070.0,114060.0,0.7064129]
[1754223068582,5.37446831,114070.0,114060.0,0.69862326]
[1754223068750,5.38511877,114070.0,114060.0,0.69862326]
[1754223068973,5.38511877,114070.0,114060.0,0.68983362]
[1754223069331,5.29341877,114070.0,114060.0,0.58934398]
[1754223069805,5.29341877,114070.0,114060.0,0.58055434]
[1754223070262,5.27291877,114070.0,114060.0,0.5556647]
[1754223070499,4.80924115,114070.0,114060.0,0.1439647]
[1754223070715,4.80924115,114070.0,114060.0,0.10012125]
[1754223071192,4.80924115,114070.0,114060.0,0.06056786]
[1754223071416,5.33983007,114070.0,114060.0,0.0135859]
[1754223071632,5.33983007,114070.0,114060.0,0.00479626]
[1754223072094,3.73609802,114030.0,114020.0,0.07071198]
[1754223072318,4.00298132,114030.0,114020.0,0.07118862]
[1754223072549,4.02882295,114030.0,114020.0,0.07118862]
[1754223072765,4.04255706,114030.0,114020.0,0.07118862]
[1754223073207,4.04255706,114030.0,114020.0,0.00047664]
[1754223073427,4.06904878,114030.0,114020.0,0.00047664]
[1754223073872,3.718649,114020.0,114000.0,0.05744]
[1754223074091,3.853249,114010.0,114000.0,0.05748763]
[1754223074780,3.86698459,114010.0,114000.0,0.05748763]
[1754223075001,3.89282622,114010.0,114000.0,0.05748763]
[1754223075850,3.87206188,114010.0,114000.0,0.05748763]
[1754223076502,3.87206188,114010.0,114000.0,0.05848763]
[1754223076723,3.89658322,114010.0,114000.0,0.05848763]
[1754223076959,3.92242485,114010.0,114000.0,0.05848763]
[1754223077399,3.90361197,114010.0,114000.0,0.05748763]
[1754223077621,3.9224159,114010.0,114000.0,0.05748763]
[1754223078081,3.9244159,114010.0,114000.0,0.05748763]
[1754223078510,3.90561197,114010.0,114000.0,0.05748763]
[1754223078976,3.91934748,114010.0,114000.0,0.05748763]
[1754223079387,3.93614504,114010.0,114000.0,0.05748763]
[1754223080115,3.93814504,114010.0,114000.0,0.05748763]
[1754223080291,3.93914504,114010.0,114000.0,0.05748763]
[1754223081331,3.96552123,114010.0,114000.0,0.05748763]
[1754223082527,4.0082364,114010.0,114000.0,0.05748763]
[1754223082890,3.96552123,114010.0,114000.0,0.05748763]
[1754223084482,3.9655153,114010.0,114000.0,0.05748763]
[1754223084702,3.9657553,114010.0,114000.0,0.05748763]
[1754223084929,3.95201979,114010.0,114000.0,0.05748763]
[1754223085396,3.92617816,114010.0,114000.0,0.05748763]
[1754223086079,3.79133816,114010.0,114000.0,0.05748763]
[1754223086308,3.92817816,114010.0,114000.0,0.05748763]
[1754223086500,3.92617816,114010.0,114000.0,0.05748763]
[1754223086756,3.92517816,114010.0,114000.0,0.05748763]
[1754223086977,3.95201979,114010.0,114000.0,0.05748763]
[1754223087200,3.95201807,114010.0,114000.0,0.05748763]
[1754223087639,3.75236507,114010.0,114000.0,0.05748763]
[1754223087883,3.76610052,114010.0,114000.0,0.05748763]
[1754223088769,3.76610052,114010.0,114000.0,0.06328039]
[1754223089007,3.76610052,114010.0,114000.0,0.05748763]
[1754223091007,3.76609892,114010.0,114000.0,0.05748763]
[1754223092806,3.76624952,114010.0,114000.0,0.05748763]
[1754223093248,3.60340789,114010.0,114000.0,0.05748763]
[1754223093471,3.76624952,114010.0,114000.0,0.05748763]
[1754223093930,3.76524952,114010.0,114000.0,0.05748763]
[1754223094200,3.76524952,114010.0,114000.0,0.05948763]
[1754223094430,3.85408708,114010.0,114000.0,0.05948763]
[1754223094864,3.76524952,114010.0,114000.0,0.05948763]
[1754223095084,3.76524952,114010.0,114000.0,0.05748763]
[1754223095770,3.76624952,114010.0,114000.0,0.05748763]
[1754223096263,3.76624952,114010.0,114000.0,0.0510109]
[1754223096510,3.78979155,114010.0,114000.0,0.0510109]
[1754223097205,3.78879155,114010.0,114000.0,0.0510109]
[1754223097654,3.78979155,114010.0,114000.0,0.0510109]
[1754223098556,3.78390345,114010.0,114000.0,0.0510109]
[1754223099922,3.8318564,114010.0,114000.0,0.0510109]
[1754223100140,3.78390345,114010.0,114000.0,0.0510109]
[1754223101489,4.13763936,114010.0,114000.0,0.0510109]
[1754223101742,4.15508838,114010.0,114000.0,0.0510109]
[1754223103516,4.60378838,114010.0,114000.0,0.0510109]
[1754223104234,4.60380259,114010.0,114000.0,0.0510109]
[1754223104910,4.59006668,114010.0,114000.0,0.0510109]
[1754223105580,4.75604233,114010.0,114000.0,0.04221777]
[1754223105802,4.77173057,114010.0,114000.0,0.04221777]
[1754223106016,4.77173057,114010.0,114000.0,0.03342464]
[1754223106450,4.72365295,114010.0,114000.0,0.02463151]
[1754223106676,0.01744902,114000.0,113990.0,0.00044]
[1754223106871,3.89861699,114000.0,113990.0,0.00048765]
[1754223107105,3.90679558,114000.0,113990.0,0.00048765]
[1754223107330,3.93179558,114000.0,113990.0,0.00048765]
[1754223107801,3.53644502,113990.0,113980.0,0.03522128]
[1754223108014,3.77506101,113990.0,113980.0,0.03526894]
[1754223109757,3.77505819,113990.0,113980.0,0.03526894]
[1754223110184,3.77505819,113990.0,113980.0,0.03626894]
[1754223110615,3.86389575,113990.0,113980.0,0.03626894]
[1754223110827,3.77505819,113990.0,113980.0,0.03626894]
[1754223111298,3.77505819,113990.0,113980.0,0.03826894]
[1754223111486,3.77505819,113990.0,113980.0,0.03626894]
[1754223111928,3.77805819,113990.0,113980.0,0.03626894]
[1754223112172,3.77805819,113990.0,113980.0,0.03526894]
[1754223112380,4.22675819,113990.0,113980.0,0.03526894]
[1754223113233,4.25015519,113990.0,113980.0,0.03526894]
[1754223113638,4.34199275,113990.0,113980.0,0.03526894]
[1754223114537,4.34499275,113990.0,113980.0,0.03526894]
[1754223114962,4.25615519,113990.0,113980.0,0.03526894]
[1754223117230,4.28329328,113990.0,113980.0,0.03526894]
[1754223117648,4.33039843,113990.0,113980.0,0.03526894]
[1754223118547,3.88459328,113990.0,113980.0,0.02647366]
[1754223118756,3.88459328,113990.0,113970.0,0.0004]
[1754223118757,0.01744902,113980.0,113970.0,0.0004]
[1754223118989,3.77650527,113980.0,113970.0,0.00044766]
[1754223119202,3.79530283,113980.0,113970.0,0.00044766]
[1754223119658,3.80319628,113980.0,113970.0,0.00044766]
[1754223120735,3.74897008,113980.0,113970.0,0.00044766]
[1754223121466,3.74997008,113980.0,113970.0,0.00044766]
[1754223121662,3.76371067,113980.0,113970.0,0.00044766]
[1754223122104,3.74634165,113980.0,113970.0,0.00044766]
[1754223122536,3.76982645,113980.0,113970.0,0.00044766]
[1754223122761,4.06411472,113980.0,113970.0,0.00044766]
[1754223122995,3.63307959,113980.0,113970.0,0.07115964]
[1754223123225,3.60959479,113980.0,113970.0,0.07115964]
[1754223123444,3.94959479,113980.0,113970.0,0.07119964]
[1754223123678,3.94141902,113980.0,113970.0,0.07119964]
[1754223124411,3.90630181,113980.0,113970.0,0.07119964]
[1754223124635,3.56630181,113980.0,113970.0,0.07119964]
[1754223124888,3.90530181,113980.0,113970.0,0.07119964]
[1754223125112,3.90530181,113980.0,113970.0,0.07319964]
[1754223125339,3.90530181,113980.0,113970.0,0.00248766]
[1754223125562,3.90530181,113980.0,113970.0,0.00268121]
[1754223125792,3.90530181,113980.0,113970.0,0.00568121]
[1754223126025,3.90530181,113980.0,113970.0,0.00348766]
[1754223126240,3.90530181,113980.0,113970.0,0.00048766]
[1754223126463,3.89156122,113980.0,113970.0,0.00048766]
[1754223126693,4.18682884,113980.0,113970.0,0.00048766]
[1754223126935,4.21379455,113980.0,113970.0,0.00048766]
[1754223127413,4.21179455,113980.0,113970.0,0.00048766]
[1754223127640,4.21179455,113980.0,113970.0,0.00348766]
[1754223127875,4.23410555,113980.0,113970.0,0.00248766]
[1754223128104,4.14526799,113980.0,113970.0,0.00248766]
[1754223128323,4.14626799,113980.0,113970.0,0.00048766]
[1754223128555,4.09424489,113980.0,113970.0,0.00048766]
[1754223128775,4.09624489,113980.0,113970.0,0.00048766]
[1754223129001,4.09524489,113980.0,113970.0,0.00048766]
[1754223129452,4.10898447,113980.0,113970.0,0.00048766]
[1754223129672,4.10998447,113980.0,113970.0,0.00048766]
[1754223129894,4.14952093,113980.0,113970.0,0.00048766]
[1754223131023,4.13186644,113980.0,113970.0,0.00048766]
[1754223132398,4.15536372,113980.0,113970.0,0.00048766]
[1754223132620,4.13186644,113980.0,113970.0,0.00048766]
[1754223133066,4.10698447,113980.0,113970.0,0.00048766]
[1754223133305,4.10694447,113980.0,113970.0,0.00048766]
[1754223133529,4.10794447,113980.0,113970.0,0.00048766]
[1754223135568,4.13144175,113980.0,113970.0,0.00048766]
[1754223136457,4.13244175,113980.0,113970.0,0.00048766]
[1754223136881,3.91739447,113980.0,113970.0,0.00048766]
[1754223137781,3.91639447,113980.0,113970.0,0.00048766]
[1754223139940,3.91640234,113980.0,113970.0,0.00048766]
[1754223144379,3.9426042,113980.0,113970.0,0.00048766]
[1754223144583,3.94262138,113980.0,113970.0,0.00048766]
[1754223144791,3.91641952,113980.0,113970.0,0.00048766]
[1754223145634,3.91641973,113980.0,113970.0,0.00048766]
[1754223147449,5.32695834,113970.0,113960.0,0.02231078]
[1754223147656,5.50795627,113970.0,113960.0,0.02231078]
[1754223148716,5.50795627,113970.0,113960.0,0.02331078]
[1754223148934,5.35147471,113970.0,113960.0,0.02531078]
[1754223149151,5.35147471,113970.0,113960.0,0.02231078]
[1754223149588,5.35147471,113970.0,113960.0,0.02431078]
[1754223150064,5.35147471,113970.0,113960.0,0.02731078]
[1754223150317,5.3351306,113970.0,113960.0,0.02731078]
[1754223150765,5.7013504,113970.0,113960.0,0.02731078]
[1754223151818,5.71508966,113970.0,113960.0,0.02731078]
[1754223152235,5.73144178,113970.0,113960.0,0.02731078]
[1754223153370,5.71508966,113970.0,113960.0,0.02731078]
[1754223153860,2.3794714,113970.0,113960.0,0.02731078]
[1754223155166,2.38765148,113970.0,113960.0,0.02731078]
[1754223155543,2.40401153,113970.0,113960.0,0.02731078]
[1754223155751,2.38765148,113970.0,113960.0,0.02731078]
[1754223156143,2.38765472,113970.0,113960.0,0.02731078]
[1754223158046,2.37391546,113970.0,113960.0,0.02731078]
[1754223158992,2.36573214,113970.0,113960.0,0.02731078]
[1754223159221,2.33951234,113970.0,113960.0,0.02731078]
[1754223159442,1.99951234,113970.0,113960.0,0.02731078]
[1754223160780,1.99951234,113970.0,113960.0,0.13339264]
[1754223161767,1.99951234,113970.0,113960.0,0.13039264]
[1754223161978,2.00051234,113970.0,113960.0,0.13639264]
[1754223162208,2.00051234,113970.0,113960.0,0.13439264]
[1754223162457,1.99951234,113970.0,113960.0,0.13239264]
[1754223162678,2.00051234,113970.0,113960.0,0.14039264]
[1754223162915,2.34051234,113970.0,113960.0,0.13639264]
[1754223163315,2.34151234,113970.0,113960.0,0.14139264]
[1754223166233,2.34151234,113970.0,113960.0,0.27883264]
[1754223173059,2.16936328,113970.0,113960.0,0.27883264]
[1754223177321,2.16936328,113970.0,113960.0,0.14139264]
[1754223177527,2.16936328,113970.0,113960.0,0.27855264]
[1754223180571,2.16936328,113970.0,113960.0,0.03531078]
[1754223181069,2.19514232,113970.0,113960.0,0.03531078]
[1754223181285,5.52258832,113970.0,113960.0,0.17259078]
[1754223181526,5.52158832,113970.0,113960.0,0.16459078]
[1754223181741,5.52158832,113970.0,113960.0,0.16211078]
[1754223182018,5.52058832,113970.0,113960.0,0.15711078]
[1754223182224,5.52058832,113970.0,113960.0,0.16111078]
[1754223182629,5.52158832,113970.0,113960.0,0.16711078]
[1754223184219,5.53532726,113970.0,113960.0,0.16711078]
[1754223184649,5.52158832,113970.0,113960.0,0.16711078]
[1754223186082,5.32317292,113970.0,113960.0,0.16711078]
[1754223189873,5.32317292,113970.0,113960.0,0.16715078]
[1754223200082,5.33691172,113970.0,113960.0,0.16715078]
[1754223200300,2.00946572,113970.0,113960.0,0.16715078]
[1754223200720,1.98368668,113970.0,113960.0,0.16715078]
[1754223203015,1.64368668,113970.0,113960.0,0.16715078]
[1754223203899,1.64368668,113970.0,113960.0,0.25578362]
[1754223204983,1.98368668,113970.0,113960.0,0.27323264]
[1754223205200,1.96994788,113970.0,113960.0,0.27323264]
[1754223206065,1.95386652,113970.0,113960.0,0.27323264]
[1754223208958,1.61386652,113970.0,113960.0,0.27323264]
[1754223209843,1.61386652,113970.0,113960.0,0.29961564]
[1754223212738,1.61386652,113970.0,113960.0,0.32461564]
[1754223225362,1.61386652,113970.0,113960.0,0.41718564]
[1754223225574,1.61386652,113970.0,113960.0,0.32461564]
[1754223232510,1.40282786,113970.0,113960.0,0.32461564]
[1754223236665,1.40282786,113970.0,113960.0,0.59431564]
[1754223249439,1.40034786,113970.0,113960.0,0.59431564]
[1754223252058,1.40034786,113970.0,113960.0,0.45703564]
[1754223252215,1.40034786,113970.0,113960.0,0.59295564]
[1754223263084,1.40034786,113970.0,113960.0,0.61795564]
[1754223264598,1.40034786,113970.0,113960.0,0.59267564]
[1754223264799,1.40034786,113970.0,113960.0,0.56767564]
[1754223265225,1.40034786,113970.0,113960.0,0.43203564]
[1754223265442,1.40034786,113970.0,113960.0,0.56795564]
[1754223265656,1.40034786,113970.0,113960.0,0.59295564]
[1754223266077,1.40034786,113970.0,113960.0,0.32325564]
[1754223266479,1.40034786,113970.0,113960.0,0.29825564]
[1754223266689,1.40034786,113970.0,113960.0,0.32325564]
[1754223274179,1.40034786,113970.0,113960.0,0.29825564]
[1754223274519,1.40034786,113970.0,113960.0,0.32325564]
[1754223277089,1.40034786,113970.0,113960.0,0.29825564]
[1754223281011,1.40034786,113970.0,113960.0,0.18733564]
[1754223281215,1.21210791,113970.0,113960.0,0.29797564]
[1754223283636,1.21210791,113970.0,113960.0,0.29793564]
[1754223285450,1.21210791,113970.0,113960.0,0.32293564]
[1754223287029,1.21210791,113970.0,113960.0,0.29793564]
[1754223287457,1.21210791,113970.0,113960.0,0.32293564]
[1754223288221,1.21210791,113970.0,113960.0,0.29793564]
[1754223288445,1.21210791,113970.0,113960.0,0.14488662]
[1754223288659,1.21210791,113970.0,113960.0,0.28060662]
[1754223288881,1.21210791,113970.0,113960.0,0.25422362]
[1754223291742,1.55210791,113970.0,113960.0,0.25422362]
[1754223293408,1.55210791,113970.0,113960.0,0.25414362]
[1754223294135,1.55210791,113970.0,113960.0,0.25410362]
[1754223299392,1.55210791,113970.0,113960.0,0.16535078]
[1754223300190,1.55210791,113970.0,113960.0,0.16754453]
[1754223300596,1.55210791,113970.0,113960.0,0.16535078]
[1754223301441,1.55210791,113970.0,113960.0,0.02987078]
[1754223301645,1.55210791,113970.0,113960.0,0.16551078]
[1754223302670,1.55210791,113970.0,113960.0,0.16770453]
[1754223302812,1.55210791,113970.0,113960.0,0.25633737]
[1754223303029,1.55210791,113970.0,113960.0,0.25414362]
[1754223304293,1.55210791,113970.0,113960.0,0.27159264]
[1754223306696,1.21210791,113970.0,113960.0,0.27159264]
[1754223313645,1.21210791,113970.0,113960.0,0.29797364]
[1754223315520,1.20966791,113970.0,113960.0,0.29797364]
[1754223338449,1.20966791,113970.0,113960.0,0.16233364]
[1754223338663,1.20966791,113970.0,113960.0,0.29773364]
[1754223341744,1.00921109,113970.0,113960.0,0.29773364]
[1754223351139,1.00921109,113970.0,113960.0,0.61743364]
[1754223353314,1.00921109,113970.0,113960.0,0.59243364]
[1754223353527,1.00921109,113970.0,113960.0,0.61743364]
[1754223354485,1.00921109,113970.0,113960.0,0.45703364]